bitfinex-derivatives/quotes_BTCF0:USTF0_20240913
["timestamp","ask_amount","ask_price","bid_price","bid_amount"]
[1726240669486,0.0934,58506.0,58505.0,0.085449]
[1726240669701,0.0934,58506.0,58498.0,0.27]
[1726240669702,0.085451,58505.0,58498.0,0.27]
[1726240669992,0.0934,58506.0,58499.0,0.085458]
[1726240670196,0.3608,58502.0,58499.0,0.085458]
[1726240670397,0.446254,58502.0,58500.0,0.085456]
[1726240671904,0.460254,58502.0,58501.0,0.085455]
[1726240672898,0.3748,58502.0,58501.0,0.085455]
[1726240673096,0.3888,58502.0,58501.0,0.085455]
[1726240673596,0.085456,58501.0,58494.0,0.09826496]
[1726240673905,0.085456,58501.0,58499.0,0.085458]
[1726240674096,0.028,58502.0,58501.0,0.085455]
[1726240674401,0.028,58502.0,58501.0,0.256365]
[1726240674697,0.014,58502.0,58501.0,1.369165]
[1726240675605,0.182932,58517.0,58514.0,0.085436]
[1726240675798,0.178932,58517.0,58514.0,0.085436]
[1726240676702,0.09451913,58519.0,58510.0,0.3608]
[1726240676905,0.014,58517.0,58513.0,0.085436]
[1726240677094,0.099433,58517.0,58513.0,0.085436]
[1726240677296,0.113433,58517.0,58513.0,0.085436]
[1726240677895,0.099433,58517.0,58513.0,0.085436]
[1726240678095,0.099433,58517.0,58514.0,0.085436]
[1726240678397,0.014,58517.0,58515.0,0.085435]
[1726240678699,0.014,58517.0,58516.0,0.085433]
[1726240678700,0.028,58517.0,58516.0,0.085433]
[1726240678901,0.099433,58517.0,58513.0,0.085437]
[1726240679291,0.099433,58517.0,58510.0,0.37090484]
[1726240679503,0.085434,58516.0,58510.0,0.37090484]
[1726240679805,0.085434,58516.0,58515.0,0.001]
[1726240680104,0.016,58517.0,58515.0,0.001]
[1726240680400,0.016,58517.0,58516.0,0.355433]
[1726240680601,0.016,58517.0,58516.0,0.085433]
[1726240680903,0.002,58517.0,58516.0,0.085433]
[1726240681494,0.087432,58517.0,58516.0,0.085433]
[1726240681699,0.085435,58515.0,58513.0,0.085438]
[1726240681895,0.085436,58514.0,58513.0,0.085438]
[1726240682097,0.101433,58517.0,58514.0,0.085436]
[1726240682403,0.085434,58516.0,58514.0,0.085436]
[1726240682704,0.085435,58515.0,58514.0,0.085436]
[1726240683800,0.099435,58515.0,58514.0,0.086436]
[1726240684297,0.014,58515.0,58514.0,0.086436]
[1726240684698,0.028,58515.0,58514.0,0.086436]
[1726240685699,0.028,58515.0,58514.0,0.001]
[1726240685896,0.028,58515.0,58514.0,0.086436]
[1726240687500,0.028,58515.0,58514.0,0.001]
[1726240687699,0.55967,58515.0,58514.0,0.001]
[1726240688093,0.085451,58504.0,58490.0,0.3608]
[1726240688297,0.085447,58507.0,58501.0,0.3608]
[1726240688497,0.085447,58507.0,58501.0,0.5608]
[1726240688702,0.085447,58507.0,58506.0,0.085448]
[1726240688903,0.085448,58506.0,58503.0,0.085452]
[1726240689109,0.3608,58509.0,58504.0,0.085451]
[1726240689404,0.3608,58516.0,58506.0,0.3608]
[1726240689706,0.085442,58511.0,58509.0,0.085443]
[1726240689911,0.170884,58511.0,58509.0,0.085443]
[1726240690094,0.085445,58508.0,58507.0,0.0923]
[1726240690299,0.085443,58510.0,58507.0,0.177747]
[1726240691105,0.3748,58511.0,58509.0,0.086443]
[1726240691303,0.3748,58511.0,58509.0,0.001]
[1726240691500,0.085442,58510.0,58509.0,0.001]
[1726240692105,0.285442,58510.0,58509.0,0.001]
[1726240692303,0.370884,58510.0,58509.0,0.001]
[1726240692705,0.461384,58510.0,58509.0,0.001]
[1726240692908,0.375942,58510.0,58509.0,0.001]
[1726240693203,0.375942,58510.0,58501.0,0.0915]
[1726240693204,0.08545,58505.0,58503.0,0.085451]
[1726240693410,0.3608,58504.0,58503.0,0.085451]
[1726240694909,0.3748,58504.0,58503.0,0.085451]
[1726240695712,0.014,58504.0,58503.0,0.085451]
[1726240696116,0.085454,58502.0,58501.0,0.0915]
[1726240696303,0.085455,58501.0,58495.0,0.3608]
[1726240696609,0.3608,58500.0,58495.0,0.3608]
[1726240696811,0.085461,58497.0,58495.0,0.446263]
[1726240697509,0.085461,58497.0,58495.0,0.45526908]
[1726240698309,0.014,58497.0,58496.0,0.085463]
[1726240698700,0.028,58497.0,58495.0,0.37080608]
[1726240698904,0.085463,58496.0,58495.0,0.01000608]
[1726240699405,0.170926,58496.0,58495.0,0.001]
[1726240699805,0.085475,58488.0,58486.0,0.089477]
[1726240700009,0.085477,58486.0,58483.0,0.085481]
[1726240700219,0.3608,58487.0,58482.0,0.0854]
[1726240700510,0.3608,58487.0,58480.0,0.085485]
[1726240700717,0.08548,58484.0,58480.0,0.085485]
[1726240701208,0.3608,58487.0,58477.0,0.085489]
[1726240701209,0.3608,58482.0,58477.0,0.085489]
[1726240701409,0.3608,58482.0,58476.0,0.00935691]
[1726240701714,0.3608,58482.0,58472.0,0.085497]
[1726240701715,0.085495,58475.0,58472.0,0.085497]
[1726240702107,0.2,58480.0,58472.0,0.085497]
[1726240702414,0.2,58480.0,58469.0,0.085501]
[1726240702415,0.085499,58472.0,58469.0,0.085501]
[1726240702607,0.085499,58472.0,58470.0,0.0855]
[1726240703409,0.3608,58477.0,58476.0,0.085492]
[1726240703604,0.3608,58477.0,58476.0,0.285492]
[1726240703807,0.3608,58477.0,58473.0,0.2]
[1726240704014,0.3608,58477.0,58469.0,0.085501]
[1726240704316,0.085497,58473.0,58469.0,0.085501]
[1726240704518,0.085499,58472.0,58469.0,0.085501]
[1726240704717,0.2,58478.0,58464.0,0.2869]
[1726240704718,0.3608,58471.0,58465.0,0.085507]
[1726240704906,0.3608,58471.0,58462.0,0.36168]
[1726240704907,0.5608,58471.0,58462.0,0.36168]
[1726240705218,0.085512,58462.0,58461.0,0.00932949]
[1726240705509,0.085512,58462.0,58450.0,0.0866]
[1726240705510,0.085519,58458.0,58451.0,0.085528]
[1726240705718,0.446319,58458.0,58450.0,0.09573922]
[1726240705920,0.3608,58458.0,58454.0,0.085523]
[1726240706107,0.3608,58458.0,58452.0,0.2]
[1726240706503,0.285511,58463.0,58452.0,0.2]
[1726240707214,0.3608,58458.0,58452.0,0.2]
[1726240707409,0.3608,58458.0,58451.0,0.085528]
[1726240707605,0.3608,58453.0,58450.0,0.09466922]
[1726240707817,0.44632,58458.0,58454.0,0.085524]
[1726240707818,0.3608,58458.0,58454.0,0.085524]
[1726240708308,0.3608,58458.0,58456.0,0.085521]
[1726240708907,0.3888,58458.0,58456.0,0.085521]
[1726240709317,0.3748,58458.0,58456.0,0.085521]
[1726240709515,0.3888,58458.0,58456.0,0.085521]
[1726240710408,0.3748,58458.0,58456.0,0.085521]
[1726240710609,0.3888,58458.0,58457.0,0.08552]
[1726240711610,0.3748,58458.0,58457.0,0.08552]
[1726240711819,0.3748,58458.0,58457.0,0.08652]
[1726240712024,0.3888,58458.0,58457.0,0.08652]
[1726240712715,0.3748,58458.0,58457.0,0.08652]
[1726240712917,0.460318,58458.0,58457.0,0.08652]
[1726240713225,0.474318,58458.0,58457.0,0.08652]
[1726240714027,0.3888,58458.0,58457.0,0.08652]
[1726240715915,0.028,58458.0,58457.0,0.08652]
[1726240716115,0.3608,58471.0,58462.0,0.085512]
[1726240716321,0.2,58467.0,58466.0,0.085506]
[1726240716521,0.2,58467.0,58463.0,0.0921]
[1726240716818,0.2,58467.0,58466.0,0.085506]
[1726240717021,0.57024528,58471.0,58463.0,0.0921]
[1726240717316,0.085504,58468.0,58467.0,0.085505]
[1726240717519,0.085501,58470.0,58467.0,0.085504]
[1726240717715,0.085501,58470.0,58469.0,0.085502]
[1726240718117,0.57024528,58471.0,58466.0,0.086506]
[1726240718118,0.014,58467.0,58466.0,0.086506]
[1726240718320,0.028,58467.0,58466.0,0.086506]
[1726240719322,0.028,58467.0,58466.0,0.172012]
[1726240719724,0.014,58467.0,58466.0,0.18015974]
[1726240719929,0.3274,58475.0,58474.0,0.085495]
[1726240720127,0.3608,58483.0,58482.0,0.085483]
[1726240720325,0.3608,58483.0,58481.0,0.085483]
[1726240720516,0.3608,58483.0,58482.0,0.085483]
[1726240720721,0.00938429,58484.0,58483.0,0.085482]
[1726240720917,2.43371,58488.0,58483.0,0.085482]
[1726240721229,2.519184,58488.0,58482.0,0.001]
[1726240721428,0.085479,58485.0,58482.0,0.001]
[1726240721827,0.2,58486.0,58482.0,0.001]
[1726240722019,0.2,58486.0,58484.0,0.08548]
[1726240722332,2.44360653,58488.0,58482.0,0.001]
[1726240722528,2.44272653,58488.0,58482.0,0.001]
[1726240722831,2.43371,58488.0,58487.0,0.085476]
[1726240723017,2.43371,58488.0,58483.0,0.271]
[1726240723221,2.43371,58488.0,58487.0,0.355476]
[1726240723422,2.43371,58488.0,58487.0,0.446276]
[1726240723622,3.730578,58488.0,58473.0,0.3648]
[1726240723825,0.3608,58484.0,58483.0,0.001]
[1726240724028,0.44628,58484.0,58483.0,0.001]
[1726240724224,0.71628,58484.0,58483.0,0.001]
[1726240724426,0.71628,58484.0,58483.0,0.002]
[1726240724623,0.71628,58484.0,58483.0,0.001]
[1726240724823,0.72539991,58484.0,58483.0,0.001]
[1726240725420,0.72839991,58484.0,58483.0,0.002]
[1726240725734,0.3638,58484.0,58483.0,0.002]
[1726240726028,0.3778,58484.0,58483.0,0.002]
[1726240727033,0.3778,58484.0,58483.0,0.087482]
[1726240727333,0.3638,58484.0,58483.0,0.086482]
[1726240727529,0.3638,58484.0,58483.0,0.448282]
[1726240727530,0.017,58484.0,58483.0,0.448282]
[1726240727728,0.017,58484.0,58483.0,0.087482]
[1726240727931,0.017,58484.0,58483.0,0.086482]
[1726240728239,2.43475001,58488.0,58485.0,0.085477]
[1726240728435,2.43371,58488.0,58486.0,0.085477]
[1726240730531,2.44771,58488.0,58486.0,0.086477]
[1726240730832,2.45071,58488.0,58486.0,0.087477]
[1726240731234,0.085476,58487.0,58486.0,0.002]
[1726240732237,0.446276,58487.0,58486.0,0.002]
[1726240732434,0.449276,58487.0,58486.0,0.002]
[1726240732631,0.719276,58487.0,58486.0,0.002]
[1726240732934,0.719276,58487.0,58486.0,0.001]
[1726240733241,0.818752,58487.0,58486.0,0.002]
[1726240734540,0.815752,58487.0,58486.0,0.001]
[1726240734732,0.818752,58487.0,58486.0,0.002]
[1726240735230,0.733276,58487.0,58486.0,0.002]
[1726240736435,2.44315922,58488.0,58486.0,0.002]
[1726240736436,2.43459,58488.0,58486.0,0.272]
[1726240736636,1.91371,58488.0,58487.0,0.854848]
[1726240737147,1.91371,58488.0,58487.0,1.454848]
[1726240737640,1.78731,58488.0,58487.0,1.454848]
[1726240737839,1.18471,58488.0,58487.0,1.454848]
[1726240738035,0.65052,58488.0,58487.0,1.454848]
[1726240738233,0.51372,58488.0,58487.0,1.454848]
[1726240738429,0.426316,58488.0,58487.0,1.454848]
[1726240739030,0.426316,58488.0,58487.0,1.455848]
[1726240739748,0.412316,58488.0,58487.0,1.456848]
[1726240740127,0.412316,58488.0,58487.0,1.455848]
[1726240740332,0.412316,58488.0,58487.0,1.456848]
[1726240741128,0.003,58488.0,58487.0,1.456848]
[1726240741333,0.004,58501.0,58500.0,0.085457]
[1726240741633,0.446248,58507.0,58502.0,0.085454]
[1726240741835,0.447128,58507.0,58497.0,0.3608]
[1726240742037,0.446248,58507.0,58497.0,0.3608]
[1726240742244,0.446248,58507.0,58500.0,0.2]
[1726240743035,0.446248,58507.0,58500.0,0.201]
[1726240743239,0.446248,58507.0,58504.0,0.085451]
[1726240743542,0.446248,58507.0,58500.0,0.286457]
[1726240743543,0.08545,58505.0,58500.0,0.286457]
[1726240743745,0.085455,58502.0,58500.0,0.001]
[1726240744048,0.08545,58505.0,58497.0,0.00910512]
[1726240744236,0.08545,58505.0,58500.0,0.001]
[1726240744437,0.08545,58505.0,58502.0,0.085453]
[1726240744655,0.3608,58507.0,58506.0,0.085448]
[1726240744949,0.0883,58510.0,58509.0,0.085444]
[1726240745333,0.1733,58513.0,58512.0,0.085439]
[1726240746341,0.0873,58519.0,58518.0,0.08543]
[1726240746538,0.3608,58520.0,58519.0,0.085429]
[1726240748141,0.3608,58520.0,58519.0,0.0957307]
[1726240748538,0.3608,58520.0,58519.0,0.0967307]
[1726240749341,0.0873,58523.0,58522.0,0.085425]
[1726240749641,0.0873,58523.0,58522.0,0.646225]
[1726240750036,0.0873,58523.0,58522.0,0.285425]
[1726240750641,0.0873,58523.0,58522.0,0.286425]
[1726240751035,0.0873,58523.0,58522.0,0.287425]
[1726240752138,0.172723,58523.0,58522.0,0.002]
[1726240752647,0.0873,58523.0,58522.0,0.087425]
[1726240753044,0.0873,58523.0,58519.0,0.0093017]
[1726240753241,0.0873,58523.0,58512.0,0.3608]
[1726240753242,0.2,58522.0,58512.0,0.3608]
[1726240753452,0.085442,58511.0,58506.0,0.36572]
[1726240753638,0.0859,58510.0,58509.0,0.085444]
[1726240754946,0.0859,58510.0,58509.0,0.086444]
[1726240755844,0.0859,58510.0,58509.0,0.087444]
[1726240756246,0.0859,58510.0,58496.0,0.004]
[1726240756247,1.19862,58510.0,58496.0,0.004]
[1726240756452,0.085466,58494.0,58493.0,0.004]
[1726240756752,0.2,58497.0,58488.0,0.3608]
[1726240756937,0.266167,58493.0,58488.0,0.3608]
[1726240757342,0.266167,58493.0,58488.0,0.37014266]
[1726240757948,0.1807,58493.0,58488.0,0.37014266]
[1726240758250,0.1807,58493.0,58492.0,0.355468]
[1726240758551,0.1827,58493.0,58492.0,0.355468]
[1726240758751,0.002,58493.0,58492.0,0.355468]
[1726240758947,0.002,58493.0,58492.0,1.468348]
[1726240759652,0.0975,58506.0,58505.0,0.085449]
[1726240759845,0.0935,58506.0,58505.0,0.085449]
[1726240761145,0.0904,58511.0,58509.0,0.085443]
[1726240761345,0.0904,58511.0,58509.0,0.355443]
[1726240761541,0.4512,58511.0,58505.0,0.002]
[1726240761857,0.0904,58511.0,58509.0,0.3608]
[1726240762355,0.0934,58511.0,58509.0,0.001]
[1726240762852,0.178841,58511.0,58509.0,0.001]
[1726240763363,0.085442,58510.0,58509.0,0.001]
[1726240763558,0.446242,58510.0,58509.0,0.002]
[1726240764452,0.446242,58510.0,58509.0,0.001]
[1726240764748,0.3608,58510.0,58509.0,0.087444]
[1726240765154,0.3608,58510.0,58509.0,0.002]
[1726240765355,0.3608,58510.0,58509.0,0.001]
[1726240765656,0.446242,58510.0,58509.0,0.002]
[1726240768956,0.3608,58510.0,58509.0,0.002]
[1726240769162,0.3608,58510.0,58509.0,0.087444]
[1726240769355,0.3608,58510.0,58509.0,0.002]
[1726240769755,0.085442,58510.0,58509.0,0.3628]
[1726240770161,0.085442,58510.0,58509.0,0.002]
[1726240771362,0.085448,58506.0,58505.0,0.00907071]
[1726240771558,0.085452,58503.0,58501.0,0.085455]
[1726240771765,0.176254,58502.0,58501.0,0.085455]
[1726240772760,0.0908,58502.0,58501.0,0.085455]
[1726240772963,0.0908,58502.0,58499.0,0.27]
[1726240773162,0.176254,58502.0,58501.0,0.001]
[1726240773361,0.0908,58502.0,58501.0,0.086455]
[1726240773864,0.0918,58502.0,58501.0,0.086455]
[1726240774655,0.0928,58502.0,58501.0,0.087455]
[1726240775562,0.002,58502.0,58501.0,0.45756261]
[1726240775863,0.002,58502.0,58501.0,0.54301761]
[1726240777162,0.002,58502.0,58501.0,0.09676261]
[1726240778366,0.002,58502.0,58501.0,1.29501761]
[1726240779866,0.002,58502.0,58501.0,1.38047261]
[1726240780066,0.085428,58520.0,58511.0,0.085441]
[1726240780370,0.3608,58518.0,58511.0,0.085441]
[1726240780672,0.446231,58518.0,58511.0,0.085441]
[1726240781870,0.446231,58518.0,58511.0,0.086441]
[1726240782568,0.085435,58515.0,58511.0,0.086441]
[1726240783370,0.085435,58515.0,58511.0,0.087441]
[1726240783774,0.085435,58515.0,58511.0,0.09675702]
[1726240784268,0.463978,58512.0,58511.0,0.01131602]
[1726240784567,0.378539,58512.0,58511.0,0.01131602]
[1726240784974,0.178539,58512.0,58511.0,0.01131602]
[1726240787065,0.178539,58512.0,58511.0,0.002]
[1726240790366,0.263978,58512.0,58511.0,0.002]
[1726240790567,0.085455,58501.0,58500.0,0.085456]
[1726240790771,0.085456,58501.0,58500.0,0.085456]
[1726240790963,0.085456,58501.0,58499.0,0.00915543]
[1726240790964,0.085457,58500.0,58499.0,0.00915543]
[1726240791166,0.3608,58501.0,58496.0,0.085462]
[1726240791469,0.0868,58499.0,58496.0,0.085462]
[1726240792174,0.0868,58499.0,58498.0,0.08546]
[1726240792359,0.172258,58499.0,58498.0,0.08546]
[1726240793073,0.08546,58498.0,58496.0,0.001]
[1726240793774,0.0928,58497.0,58496.0,0.001]
[1726240794477,0.0928,58497.0,58496.0,0.002]
[1726240794678,0.178261,58497.0,58496.0,0.001]
[1726240794880,0.263722,58497.0,58496.0,0.002]
[1726240795064,1.20564,58497.0,58485.0,0.005]
[1726240795269,1.20564,58497.0,58479.0,0.004]
[1726240795270,0.5608,58486.0,58479.0,0.004]
[1726240795474,0.5608,58486.0,58479.0,0.00906641]
[1726240795475,0.3608,58480.0,58479.0,0.00906641]
[1726240795772,0.3608,58480.0,58470.0,0.3608]
[1726240795972,0.3608,58480.0,58474.0,0.085494]
[1726240796473,0.085485,58481.0,58470.0,0.3608]
[1726240796780,0.3608,58481.0,58472.0,0.09454355]
[1726240797079,0.3608,58481.0,58472.0,0.00904655]
[1726240797325,0.085494,58475.0,58474.0,0.001]
[1726240797577,0.085494,58475.0,58467.0,0.004]
[1726240797578,0.085502,58470.0,58467.0,0.004]
[1726240797763,0.5608,58475.0,58462.0,0.089512]
[1726240797764,0.270602,58469.0,58463.0,0.085511]
[1726240797967,0.3608,58467.0,58463.0,0.085511]
[1726240798279,0.3608,58468.0,58466.0,0.2]
[1726240798771,0.1851,58469.0,58462.0,0.085512]
[1726240798976,0.270603,58469.0,58462.0,0.085512]
[1726240799276,0.014,58467.0,58463.0,0.001]
[1726240800075,0.014,58467.0,58463.0,0.08651]
[1726240800268,0.014,58467.0,58464.0,0.3608]
[1726240800772,0.0898,58466.0,58465.0,0.285508]
[1726240801967,0.028,58467.0,58466.0,0.085506]
[1726240803781,0.014,58467.0,58466.0,0.085506]
[1726240804376,0.028,58467.0,58466.0,0.086506]
[1726240805478,0.0046,58486.0,58466.0,1.199626]
[1726240805676,0.0921,58483.0,58480.0,0.5608]
[1726240805979,0.0921,58483.0,58482.0,0.285483]
[1726240806386,0.0921,58483.0,58482.0,0.085483]
[1726240806871,0.0921,58483.0,58482.0,0.646283]
[1726240807280,0.0941,58483.0,58482.0,0.646283]
[1726240807878,0.0941,58483.0,58482.0,0.447283]
[1726240808279,0.1081,58483.0,58482.0,0.3628]
[1726240808481,0.1081,58483.0,58482.0,0.37185707]
[1726240809181,0.1061,58483.0,58482.0,0.37185707]
[1726240809579,0.1061,58483.0,58482.0,0.45734007]
[1726240810676,0.0971,58483.0,58482.0,0.45734007]
[1726240811277,0.0941,58483.0,58482.0,0.45634007]
[1726240811481,0.0971,58483.0,58482.0,0.45734007]
[1726240812384,0.005,58483.0,58482.0,0.45734007]
[1726240812592,0.005,58483.0,58482.0,0.62830607]
[1726240812788,0.005,58483.0,58482.0,1.74126607]
[1726240813580,0.003,58483.0,58482.0,1.74126607]
[1726240813775,0.014,58483.0,58482.0,1.14126607]
[1726240813988,0.014,58483.0,58482.0,1.74126607]
[1726240814377,0.1793,58495.0,58494.0,0.085466]
[1726240815481,0.1793,58495.0,58493.0,0.085467]
[1726240815694,0.1793,58495.0,58494.0,0.085466]
[1726240816895,0.1923,58495.0,58494.0,0.086466]
[1726240817085,0.1923,58495.0,58494.0,0.001]
[1726240817389,0.1923,58495.0,58494.0,0.002]
[1726240817588,0.1923,58495.0,58494.0,0.087466]
[1726240818390,0.013,58495.0,58494.0,0.357466]
[1726240818690,0.013,58495.0,58494.0,0.442932]
[1726240818888,0.013,58495.0,58494.0,0.45233046]
[1726240819282,0.013,58495.0,58494.0,0.09686446]
[1726240819884,0.013,58495.0,58494.0,0.81313046]
[1726240820094,0.013,58495.0,58494.0,0.89859646]
[1726240820394,0.013,58495.0,58494.0,0.45766446]
[1726240821494,0.013,58495.0,58494.0,0.09686446]
[1726240824992,0.098464,58495.0,58494.0,0.01139846]
[1726240825298,0.085466,58494.0,58484.0,0.3608]
[1726240825597,0.27,58492.0,58484.0,0.3608]
[1726240825798,0.085477,58487.0,58484.0,0.3608]
[1726240825999,0.085477,58487.0,58484.0,0.37029395]
[1726240826199,0.085476,58487.0,58484.0,0.37029395]
[1726240826400,0.085477,58486.0,58484.0,0.00949395]
[1726240826603,0.446272,58490.0,58479.0,0.6308]
[1726240826788,0.085473,58489.0,58483.0,0.085481]
[1726240827494,0.085473,58489.0,58484.0,0.002]
[1726240827690,0.085475,58488.0,58484.0,0.002]
[1726240828201,0.085475,58488.0,58484.0,0.001]
[1726240828401,0.085475,58488.0,58484.0,0.08548]
[1726240828801,0.085475,58488.0,58484.0,0.08648]
[1726240829296,0.085475,58488.0,58484.0,0.08748]
[1726240829297,0.099475,58488.0,58484.0,0.08748]
[1726240829888,0.099475,58488.0,58485.0,0.085478]
[1726240830091,0.014,58488.0,58484.0,0.3628]
[1726240830303,0.014,58488.0,58487.0,0.085476]
[1726240831201,0.0891,58491.0,58487.0,0.085476]
[1726240831407,0.0891,58491.0,58490.0,0.085471]
[1726240832604,0.1715,58494.0,58490.0,0.3608]
[1726240832902,0.1715,58494.0,58493.0,0.285467]
[1726240833903,0.1715,58494.0,58493.0,0.085467]
[1726240834608,0.1715,58494.0,58493.0,0.086467]
[1726240834826,0.1715,58494.0,58493.0,0.001]
[1726240835108,0.617766,58494.0,58493.0,0.001]
[1726240835603,0.617766,58494.0,58493.0,0.002]
[1726240835604,0.631766,58494.0,58493.0,0.002]
[1726240836797,0.085467,58493.0,58490.0,0.00953972]
[1726240837009,0.085467,58493.0,58491.0,0.085469]
[1726240837202,0.1855,58494.0,58493.0,0.085467]
[1726240838413,0.1715,58494.0,58493.0,0.085467]
[1726240838904,0.1715,58494.0,58493.0,0.086467]
[1726240839508,0.1855,58494.0,58493.0,0.087467]
[1726240840305,0.1855,58494.0,58493.0,0.09694699]
[1726240842895,0.1855,58494.0,58493.0,0.45774699]
[1726240843100,0.1855,58494.0,58493.0,0.18241399]
[1726240843101,0.1002,58494.0,58493.0,0.18241399]
[1726240844308,0.1002,58494.0,58493.0,0.09694699]
[1726240852525,0.541132,58494.0,58493.0,0.01147999]
[1726240852708,0.185666,58494.0,58493.0,0.01147999]
[1726240852908,0.1002,58494.0,58493.0,0.09694699]
[1726240856115,0.1002,58494.0,58493.0,0.29694699]
[1726240858120,0.0862,58494.0,58493.0,0.29594699]
[1726240858324,0.1002,58494.0,58493.0,0.29694699]
[1726240858524,0.1002,58494.0,58493.0,0.29594699]
[1726240858823,0.1002,58494.0,58493.0,0.29694699]
[1726240860625,0.3002,58494.0,58493.0,0.01147999]
[1726240860916,0.1002,58494.0,58493.0,0.09694699]
[1726240864323,0.1002,58494.0,58493.0,0.18241399]
[1726240865109,0.1002,58494.0,58493.0,0.09694699]
[1726240867019,0.1002,58494.0,58493.0,0.18241399]
[1726240867425,0.014,58494.0,58493.0,0.18241399]
[1726240868417,0.014,58494.0,58493.0,0.26788099]
[1726240868724,0.012,58494.0,58493.0,1.74156099]
[1726240869120,0.012,58494.0,58493.0,1.14156099]
[1726240869315,0.0858,58503.0,58502.0,0.170908]
[1726240869519,0.0858,58503.0,58502.0,0.646254]
[1726240870929,0.0868,58503.0,58502.0,0.447254]
[1726240871229,0.0868,58503.0,58502.0,0.448254]
[1726240871726,0.0868,58503.0,58502.0,0.648254]
[1726240874327,0.0858,58503.0,58502.0,0.647254]
[1726240874631,0.0868,58503.0,58502.0,0.65772734]
[1726240876626,0.0868,58503.0,58502.0,0.45772734]
[1726240881136,0.004,58518.0,58502.0,1.68507334]
[1726240881434,0.004,58518.0,58517.0,0.285432]
[1726240881435,0.1822,58518.0,58517.0,0.285432]
[1726240881731,0.1822,58518.0,58517.0,0.085432]
[1726240882321,0.1822,58518.0,58515.0,0.2]
[1726240882322,0.1832,58518.0,58515.0,0.2]
[1726240882533,0.1832,58518.0,58514.0,0.3608]
[1726240882833,0.1832,58518.0,58515.0,0.085435]
[1726240882834,0.268632,58518.0,58515.0,0.085435]
[1726240883037,0.1832,58518.0,58509.0,0.3608]
[1726240883628,0.544,58518.0,58509.0,0.3608]
[1726240883823,0.543,58518.0,58513.0,0.085437]
[1726240884029,0.543,58518.0,58509.0,0.3608]
[1726240884030,0.1822,58518.0,58517.0,0.001]
[1726240884741,0.1822,58518.0,58515.0,0.085434]
[1726240885636,0.1822,58518.0,58517.0,0.001]
[1726240886736,0.2,58525.0,58517.0,0.001]
[1726240886737,0.3608,58530.0,58517.0,0.202]
[1726240886930,0.1007,58526.0,58525.0,0.08542]
[1726240887132,0.1007,58526.0,58525.0,0.28542]
[1726240888533,0.1007,58526.0,58525.0,0.28642]
[1726240888830,0.1007,58526.0,58525.0,0.28742]
[1726240889435,0.1007,58526.0,58525.0,0.08742]
[1726240889741,0.1007,58526.0,58525.0,0.002]
[1726240890235,0.1007,58526.0,58525.0,0.08742]
[1726240890429,1.7741,58526.0,58518.0,0.00930706]
[1726240890628,1.7741,58526.0,58510.0,0.004]
[1726240890629,0.5608,58519.0,58510.0,0.004]
[1726240890832,0.085442,58510.0,58509.0,0.0092075]
[1726240891035,0.085442,58510.0,58502.0,0.3608]
[1726240891240,0.1994,58509.0,58504.0,0.085451]
[1726240891439,0.3608,58511.0,58508.0,0.2]
[1726240891642,0.0988,58515.0,58508.0,0.2]
[1726240891940,0.0988,58515.0,58507.0,0.3608]
[1726240891941,0.0988,58515.0,58514.0,0.085436]
[1726240892540,0.11933343,58528.0,58520.0,0.085427]
[1726240892842,0.3608,58532.0,58527.0,0.2]
[1726240893146,0.1082,58528.0,58527.0,0.085417]
[1726240893838,0.1082,58528.0,58527.0,0.285417]
[1726240894049,0.1082,58528.0,58527.0,0.2]
[1726240894440,0.1102,58528.0,58527.0,0.201]
[1726240894747,0.002,58528.0,58527.0,0.287417]
[1726240895153,0.004,58546.0,58527.0,1.31456]
[1726240895362,0.1078,58545.0,58544.0,0.2]
[1726240895746,0.1078,58545.0,58540.0,0.2]
[1726240895943,0.1078,58545.0,58537.0,0.3608]
[1726240895944,0.1078,58545.0,58543.0,0.2]
[1726240896655,0.1078,58545.0,58543.0,0.285394]
[1726240897056,0.1078,58545.0,58543.0,0.2]
[1726240897465,0.3608,58544.0,58540.0,0.2]
[1726240897958,0.3608,58544.0,58537.0,0.3608]
[1726240898150,0.3608,58544.0,58543.0,0.201]
[1726240898353,0.1078,58545.0,58543.0,0.286394]
[1726240898859,0.1078,58545.0,58543.0,0.201]
[1726240899465,0.1078,58545.0,58543.0,0.202]
[1726240900855,0.1078,58545.0,58543.0,0.201]
[1726240901059,0.1078,58545.0,58543.0,0.202]
[1726240901361,0.4686,58545.0,58543.0,0.002]
[1726240901551,0.4686,58545.0,58543.0,0.001]
[1726240901552,0.085393,58544.0,58543.0,0.001]
[1726240901751,0.4696,58545.0,58543.0,0.002]
[1726240901957,0.4686,58545.0,58543.0,0.002]
[1726240902467,0.00934862,58549.0,58544.0,0.51244]
[1726240902762,0.3608,58557.0,58548.0,0.2]
[1726240903167,0.446174,58557.0,58548.0,0.2]
[1726240903358,0.085382,58552.0,58543.0,0.09660263]
[1726240903666,0.3608,58550.0,58543.0,0.29660363]
[1726240903866,0.085383,58551.0,58543.0,0.29660363]
[1726240904073,0.3608,58557.0,58549.0,0.3608]
[1726240904367,0.2019,58558.0,58556.0,0.2]